bitfinex/quotes_SOLUSD_20250522
["timestamp","ask_amount","ask_price","bid_price","bid_amount"]
[1747886764104,34.0,176.42,176.38,32.63192666]
[1747886764289,66.63192666,176.42,176.36,32.63192666]
[1747886764684,66.63192666,176.42,176.28,26.0]
[1747886764685,34.0,176.42,176.37,32.63192666]
[1747886764989,34.0,176.41,176.38,32.63192666]
[1747886765389,34.0,176.41,176.33,5.6710284]
[1747886765607,34.0,176.41,176.38,32.63192666]
[1747886766007,14.16699567,176.47,176.39,32.63192666]
[1747886766206,5.66700668,176.46,176.43,32.63192666]
[1747886766394,217.86667595,176.48,176.45,32.63192666]
[1747886766592,251.88667595,176.48,176.44,32.63192666]
[1747886766793,217.86667595,176.48,176.44,32.63192666]
[1747886766988,34.02,176.47,176.44,32.63192666]
[1747886767312,5.66608243,176.49,176.45,32.63192666]
[1747886767608,34.02,176.51,176.47,32.63192666]
[1747886767805,66.65192666,176.51,176.38,34.02]
[1747886768006,66.65192666,176.51,176.46,32.63192666]
[1747886768007,5.66572237,176.5,176.46,32.63192666]
[1747886768503,34.02,176.51,176.48,32.63192666]
[1747886768809,34.02,176.51,176.49,32.63192666]
[1747886768995,5.66471819,176.54,176.49,32.63192666]
[1747886769306,60.58,176.57,176.53,32.63192666]
[1747886769509,34.02,176.58,176.54,32.63192666]
[1747886769694,66.65192666,176.58,176.53,32.63192666]
[1747886770407,5.66347624,176.57,176.52,32.63192666]
[1747886770997,5.66347624,176.57,176.53,32.63192666]
[1747886771507,38.2954029,176.57,176.51,32.63192666]
[1747886771707,5.66347624,176.57,176.52,32.63192666]
[1747886772211,68.12504871,176.58,176.53,32.63192666]
[1747886772404,100.75697537,176.58,176.52,32.63192666]
[1747886772605,28.1551714,176.57,176.52,32.63192666]
[1747886772815,28.1551714,176.57,176.54,32.63192666]
[1747886773112,28.45737443,176.61,176.56,32.63192666]
[1747886773422,28.73960476,176.65,176.55,32.63192666]
[1747886773614,28.73960476,176.65,176.53,34.0]
[1747886773787,32.63192666,176.65,176.6,32.63192666]
[1747886773992,62.51672203,176.67,176.61,32.63192666]
[1747886774206,100.80916197,176.67,176.61,32.63192666]
[1747886774523,28.65480056,176.66,176.6,32.63192666]
[1747886774685,61.28787258,176.64,176.58,32.63192666]
[1747886774890,28.65480056,176.66,176.59,32.63192666]
[1747886775191,32.63192666,176.6,176.47,54.34918474]
[1747886775509,32.63192666,176.56,176.5,32.63192666]
[1747886775684,32.63192666,176.55,176.49,32.63192666]
[1747886775885,66.63192666,176.55,176.49,32.63192666]
[1747886776107,39.66438581,176.55,176.49,32.63192666]
[1747886776427,34.0,176.55,176.51,32.63192666]
[1747886776723,5.66251415,176.6,176.51,32.63192666]
[1747886776887,34.0,176.57,176.49,18.64964886]
[1747886777093,137.71787498,176.56,176.52,32.63192666]
[1747886777513,137.71787498,176.56,176.51,32.63192666]
[1747886777722,137.71787498,176.56,176.5,32.63192666]
[1747886778023,137.71787498,176.56,176.52,32.63192666]
[1747886778231,137.71787498,176.56,176.48,5.80852603]
[1747886778420,137.71787498,176.56,176.51,32.63192666]
[1747886778731,127.38257904,176.57,176.55,32.63192666]
[1747886778732,55.08715,176.57,176.55,32.63192666]
[1747886778911,55.08715,176.57,176.56,32.63192666]
[1747886779832,55.08715,176.57,176.5,44.64964886]
[1747886779833,55.08715,176.57,176.54,6.4664]
[1747886780125,55.08715,176.57,176.56,32.63192666]
[1747886780706,55.08715,176.57,176.54,32.63192666]
[1747886780910,55.08715,176.57,176.52,1.6379]
[1747886780911,55.08715,176.57,176.56,32.63192666]
[1747886781722,142.75905409,176.59,176.56,32.63192666]
[1747886782100,181.05383172,176.59,176.5,31.66566187]
[1747886782294,32.63192666,176.57,176.51,32.63192666]
[1747886782490,32.63192666,176.56,176.51,32.63192666]
[1747886782708,32.63192666,176.56,176.5,32.63192666]
[1747886782709,5.66411781,176.55,176.5,32.63192666]
[1747886782923,32.63192666,176.51,176.45,32.63192666]
[1747886783124,33.98,176.5,176.41,5.66858368]
[1747886783321,32.63192666,176.47,176.39,5.66925562]
[1747886783501,33.98,176.46,176.4,32.63192666]
[1747886783704,33.98,176.46,176.41,32.63192666]
[1747886783898,32.63192666,176.44,176.35,0.052989]
[1747886784094,32.63192666,176.43,176.37,32.63192666]
[1747886784322,66.61192666,176.42,176.35,0.052989]
[1747886784633,33.98,176.42,176.38,32.63192666]
[1747886784810,39.64854967,176.42,176.35,0.052989]
[1747886785018,72.28047633,176.42,176.37,32.63192666]
[1747886785414,32.63192666,176.41,176.35,32.68491566]
[1747886785926,32.63192666,176.41,176.35,58.68491566]
[1747886786218,66.61192666,176.42,176.36,32.63192666]
[1747886786720,32.63192666,176.44,176.38,32.63192666]
[1747886786898,32.63192666,176.46,176.4,32.63192666]
[1747886787099,66.63192666,176.46,176.4,32.63192666]
[1747886787413,32.63192666,176.45,176.39,32.63192666]
[1747886787618,34.0,176.46,176.4,32.63192666]
[1747886787811,66.63192666,176.46,176.4,32.63192666]
[1747886788124,66.63192666,176.48,176.43,32.63192666]
[1747886788303,32.63192666,176.47,176.41,32.63192666]
[1747886788507,32.63192666,176.45,176.38,31.6692818]
[1747886788814,34.0,176.48,176.4,32.63192666]
[1747886789009,34.0,176.47,176.42,32.63192666]
[1747886789320,66.63192666,176.49,176.43,32.63192666]
[1747886790058,42.86658008,176.52,176.47,32.63192666]
[1747886790324,42.86658008,176.52,176.48,32.63192666]
[1747886790509,75.49850674,176.52,176.46,58.63192666]
[1747886790703,32.63192666,176.48,176.44,26.0]
[1747886791006,32.63192666,176.45,176.38,32.63192666]
[1747886791320,26.0,176.51,176.41,32.63192666]
[1747886791519,32.63192666,176.47,176.41,32.63192666]
[1747886791704,32.63192666,176.45,176.37,0.14216157]
[1747886791897,32.63192666,176.43,176.35,5.72339862]
[1747886792099,34.0,176.45,176.36,32.63192666]
[1747886792315,32.63192666,176.42,176.37,32.63192666]
[1747886792534,32.63192666,176.42,176.37,26.0]
[1747886792823,34.0,176.45,176.38,58.63192666]
[1747886792999,32.63192666,176.41,176.35,38.35532528]
[1747886793199,32.63192666,176.39,176.35,0.052989]
[1747886794001,32.63192666,176.37,176.35,0.052989]
[1747886794219,5.66935616,176.39,176.35,0.052989]
[1747886794401,39.66894138,176.4,176.35,0.052989]
[1747886794616,32.63192666,176.39,176.35,0.052989]
[1747886794814,32.63192666,176.38,176.35,0.052989]
[1747886795012,32.63192666,176.36,176.26,14.18325556]
[1747886795325,32.63192666,176.34,176.27,5.6731151]
[1747886795529,32.63192666,176.34,176.24,18.64964886]
[1747886795530,32.63192666,176.32,176.26,32.63192666]
[1747886795710,32.63192666,176.3,176.24,32.63192666]
[1747886796028,32.63192666,176.27,176.22,31.67446317]
[1747886796227,32.63192666,176.28,176.22,64.30638983]
[1747886796524,34.0,176.3,176.25,58.63192666]
[1747886796733,32.63192666,176.31,176.26,32.63192666]
[1747886796907,34.0,176.32,176.27,32.63192666]
[1747886797231,32.63192666,176.34,176.29,58.63192666]
[1747886797424,32.63192666,176.35,176.29,58.63192666]
[1747886797732,32.63192666,176.34,176.28,32.63192666]
[1747886798102,32.63192666,176.36,176.3,32.63192666]
[1747886798308,75.49850674,176.37,176.31,32.63192666]
[1747886798511,75.49850674,176.37,176.26,32.63192666]
[1747886798512,32.63192666,176.32,176.26,32.63192666]
[1747886798705,32.63192666,176.32,176.26,58.63192666]
[1747886798905,32.63192666,176.35,176.29,58.63192666]
[1747886799102,8.86658008,176.37,176.32,58.63192666]
[1747886799307,8.86658008,176.37,176.33,58.63192666]
[1747886799508,8.86658008,176.37,176.34,32.63192666]
[1747886799723,8.86658008,176.37,176.36,32.63192666]
[1747886800116,66.65192666,176.42,176.36,38.30214666]
[1747886800432,34.02,176.42,176.35,38.30243407]
[1747886800607,32.63192666,176.41,176.35,5.67050741]
[1747886800812,32.63192666,176.41,176.35,38.30243407]
[1747886801014,8.86658008,176.43,176.4,32.63192666]
[1747886801219,8.86658008,176.43,176.39,32.63192666]
[1747886801533,32.63192666,176.42,176.38,26.0]
[1747886802036,32.63192666,176.43,176.38,26.0]
[1747886802214,32.63192666,176.44,176.38,32.63192666]
[1747886802537,32.63192666,176.41,176.35,58.63192666]
[1747886802833,32.63192666,176.4,176.35,26.0]
[1747886803036,32.63192666,176.38,176.33,26.0]
[1747886803211,32.63192666,176.38,176.34,26.0]
[1747886803411,32.63192666,176.39,176.34,26.0]
[1747886803609,34.02,176.42,176.37,32.63192666]
[1747886803933,42.88658008,176.43,176.4,32.63192666]
[1747886804117,42.88658008,176.43,176.38,26.0]
[1747886804328,42.88658008,176.43,176.38,32.63192666]
[1747886804548,42.88658008,176.43,176.36,26.0]
[1747886804710,42.88658008,176.43,176.39,58.63192666]
[1747886805057,66.65192666,176.46,176.41,32.63192666]
[1747886805816,34.02,176.46,176.42,58.63192666]
[1747886806219,8.86658008,176.47,176.43,32.63192666]
[1747886806532,8.86658008,176.47,176.45,32.63192666]
[1747886806737,8.86658008,176.47,176.44,32.63192666]
[1747886807241,8.86658008,176.47,176.42,31.66810932]
[1747886807242,8.86658008,176.47,176.46,32.63192666]
[1747886807635,32.63192666,176.5,176.45,26.0]
[1747886807809,32.63192666,176.48,176.42,32.63192666]
[1747886808014,32.63192666,176.45,176.4,32.63192666]
[1747886808230,34.02,176.49,176.42,32.63192666]
[1747886808522,8.86658008,176.52,176.51,26.0]
[1747886808707,8.86658008,176.52,176.51,58.77408823]
[1747886809135,8.86658008,176.52,176.51,77.42373709]
[1747886809539,8.86658008,176.52,176.51,44.79181043]
[1747886809836,142.75905409,176.59,176.52,18.79181043]
[1747886810041,142.75905409,176.59,176.55,26.0]
[1747886810533,142.75905409,176.59,176.56,26.0]
[1747886811040,142.75905409,176.59,176.56,58.63192666]
[1747886811235,142.75905409,176.59,176.48,5.66636446]
[1747886811421,142.75905409,176.59,176.54,32.63192666]
[1747886811615,142.75905409,176.59,176.46,6.3353]
[1747886811815,32.63192666,176.53,176.47,32.77408823]
[1747886812047,34.0,176.54,176.47,26.14216157]
[1747886812341,34.0,176.55,176.5,32.63192666]
[1747886812569,66.63192666,176.55,176.47,0.14216157]
[1747886812745,32.63192666,176.54,176.48,32.63192666]
[1747886813043,32.63192666,176.52,176.46,58.63192666]
[1747886813217,32.63192666,176.49,176.41,5.66856526]
[1747886813422,32.63192666,176.45,176.35,5.67054153]
[1747886813620,32.63192666,176.44,176.38,32.63192666]
[1747886813825,34.0,176.45,176.4,32.63192666]
[1747886814025,34.0,176.45,176.42,32.63192666]
[1747886814341,34.0,176.45,176.39,32.63192666]
[1747886814517,66.63192666,176.45,176.39,32.63192666]
[1747886814845,34.0,176.45,176.4,32.63192666]
[1747886815025,34.0,176.45,176.41,32.63192666]
[1747886815421,66.63192666,176.45,176.39,32.63192666]
[1747886816019,32.63192666,176.44,176.39,32.63192666]
[1747886816435,34.0,176.45,176.39,32.63192666]
[1747886816436,34.0,176.45,176.42,32.77408823]
[1747886816639,34.0,176.45,176.41,32.63192666]
[1747886817359,14.53166778,176.52,176.42,26.14216157]
[1747886817652,34.0,176.51,176.45,0.14216157]
[1747886817822,32.63192666,176.5,176.44,32.63192666]
[1747886818148,32.63192666,176.48,176.42,58.63192666]
[1747886818353,66.63192666,176.47,176.42,0.14216157]
[1747886818527,32.63192666,176.5,176.44,32.63192666]
[1747886818866,34.0,176.49,176.46,32.63192666]
[1747886819352,8.86658008,176.55,176.48,32.77408823]
[1747886819528,32.63192666,176.53,176.47,32.63192666]
[1747886819729,66.63192666,176.54,176.49,32.63192666]
[1747886820339,66.63192666,176.54,176.46,0.14216157]
[1747886820340,32.63192666,176.51,176.39,14.17247]
[1747886820524,66.63192666,176.5,176.44,32.63192666]
[1747886820723,34.0,176.5,176.44,32.63192666]
[1747886820941,34.0,176.5,176.47,32.63192666]
[1747886821428,66.63192666,176.5,176.42,26.0]
[1747886821731,32.63192666,176.49,176.43,32.63192666]
[1747886821931,66.63192666,176.5,176.45,32.63192666]
[1747886822236,34.0,176.5,176.46,32.63192666]
[1747886822532,34.0,176.5,176.41,18.79181043]
[1747886822533,32.63192666,176.49,176.43,32.63192666]
[1747886822926,34.0,176.5,176.45,32.63192666]
[1747886823221,66.63192666,176.5,176.45,32.63192666]
[1747886823638,72.297936,176.5,176.44,32.63192666]
[1747886823850,66.63192666,176.5,176.45,32.63192666]
[1747886824049,34.0,176.5,176.46,32.63192666]
[1747886824244,72.29766134,176.5,176.44,32.63192666]
[1747886824430,32.63192666,176.47,176.41,32.63192666]
[1747886824634,32.63192666,176.47,176.4,26.0]
[1747886824635,66.63192666,176.46,176.4,38.30076373]
[1747886824847,34.0,176.46,176.43,32.63192666]
[1747886825230,5.66542857,176.51,176.45,32.63192666]
[1747886825426,34.0,176.5,176.41,18.79181043]
[1747886825630,34.0,176.52,176.49,32.63192666]
[1747886825827,48.53080646,176.55,176.45,18.64964886]
[1747886826037,32.63192666,176.54,176.48,32.63192666]
[1747886826462,34.0,176.55,176.49,38.44001467]
[1747886826638,34.0,176.55,176.49,5.80808801]
[1747886826832,34.0,176.55,176.51,32.63192666]
[1747886827034,34.0,176.55,176.52,32.63192666]
[1747886827227,34.0,176.55,176.53,32.63192666]
[1747886827432,34.0,176.55,176.51,0.14216157]
[1747886827738,32.63192666,176.54,176.49,0.14216157]
[1747886828045,32.63192666,176.53,176.47,32.63192666]
[1747886828361,72.2960538,176.55,176.49,32.63192666]
[1747886828649,7.53357646,176.59,176.51,32.63192666]
[1747886828650,34.0,176.54,176.51,32.63192666]
[1747886828843,34.0,176.56,176.52,32.63192666]
[1747886829039,7.53357646,176.59,176.53,32.63192666]
[1747886829255,74.16550312,176.59,176.54,32.63192666]
[1747886829431,32.63192666,176.58,176.53,32.63192666]
[1747886829640,41.53357646,176.59,176.55,32.63192666]
[1747886829955,8.86658008,176.65,176.59,0.14216157]
[1747886830255,32.63192666,176.64,176.58,32.63192666]
[1747886830556,38.29495304,176.59,176.53,32.63192666]
[1747886830736,38.29495304,176.59,176.54,0.14216157]
[1747886830940,32.63192666,176.57,176.46,18.79181043]
[1747886831154,5.66302638,176.59,176.51,32.63192666]
[1747886831339,32.63192666,176.56,176.51,32.63192666]
[1747886831534,5.66302638,176.59,176.47,26.0]
[1747886831752,5.66302638,176.59,176.5,32.63192666]
[1747886832056,32.63192666,176.57,176.51,32.63192666]
[1747886832236,5.66302638,176.59,176.5,0.14216157]
[1747886832437,32.63192666,176.56,176.5,32.77408823]
[1747886832638,39.64411781,176.55,176.48,0.14216157]
[1747886832839,32.63192666,176.52,176.46,32.63192666]
[1747886833067,32.63192666,176.5,176.44,32.77408823]
[1747886833229,32.63192666,176.5,176.44,32.63192666]
[1747886833669,32.63192666,176.5,176.4,24.70374886]
[1747886833670,33.98,176.49,176.37,5.6698985]
[1747886833968,33.98,176.49,176.43,0.14216157]
[1747886834169,32.63192666,176.48,176.43,0.14216157]
[1747886834533,38.2984344,176.48,176.42,58.63192666]
[1747886834737,32.63192666,176.44,176.39,0.14216157]
[1747886835041,32.63192666,176.44,176.38,32.63192666]
[1747886835042,32.63192666,176.43,176.38,0.14216157]
[1747886835254,66.61192666,176.44,176.38,32.77408823]
[1747886836360,32.63192666,176.42,176.38,0.14216157]
[1747886836561,32.63192666,176.42,176.33,6.0541]
[1747886836562,32.63192666,176.42,176.33,11.72522271]
[1747886836859,66.61192666,176.44,176.38,32.63192666]
[1747886837253,66.61192666,176.44,176.39,0.14216157]
[1747886837440,33.98,176.44,176.42,32.63192666]
[1747886837650,14.16051592,176.55,176.42,32.63192666]
[1747886837862,90.34,176.54,176.44,32.63192666]
[1747886838157,32.63192666,176.45,176.37,32.63192666]
[1747886838339,32.63192666,176.42,176.38,0.14216157]
[1747886838656,34.0,176.43,176.39,32.63192666]
[1747886838835,34.0,176.45,176.42,32.63192666]
[1747886839037,56.34,176.53,176.45,0.14216157]
[1747886839357,34.0,176.5,176.46,32.63192666]
[1747886839544,66.63192666,176.5,176.44,32.63192666]
[1747886839748,66.63192666,176.5,176.45,0.14216157]
[1747886839949,34.0,176.5,176.45,32.77408823]
[1747886840147,32.63192666,176.51,176.45,32.77408823]
[1747886840148,32.63192666,176.51,176.45,38.44110741]
[1747886840446,34.0,176.5,176.46,32.63192666]
[1747886840657,34.0,176.5,176.45,32.77408823]
[1747886840961,34.0,176.5,176.47,32.63192666]
[1747886841159,34.0,176.5,176.46,0.14216157]
[1747886841456,34.0,176.5,176.35,10.0]
[1747886841457,34.0,176.5,176.42,32.63192666]
[1747886841661,32.63192666,176.49,176.43,0.14216157]
[1747886841960,32.63192666,176.48,176.43,0.14216157]
[1747886842347,32.63192666,176.47,176.42,32.63192666]
[1747886842544,32.63192666,176.47,176.43,0.14216157]
[1747886842748,32.63192666,176.47,176.41,32.63192666]
[1747886842941,32.63192666,176.46,176.4,32.63192666]
[1747886843141,34.0,176.45,176.4,32.63192666]
[1747886843863,34.0,176.45,176.34,24.46267353]
[1747886843864,32.63192666,176.41,176.34,24.46267353]
[1747886844165,32.63192666,176.38,176.34,0.14216157]
[1747886844362,34.0,176.38,176.34,0.14216157]
[1747886844561,34.0,176.38,176.34,32.63192666]
[1747886844768,66.63192666,176.38,176.32,32.63192666]
[1747886845065,34.0,176.38,176.35,32.63192666]
[1747886845363,34.0,176.38,176.36,0.14216157]
[1747886845944,34.0,176.38,176.35,0.14216157]
[1747886846274,34.0,176.38,176.33,32.63192666]
[1747886846472,34.0,176.38,176.34,0.14216157]
[1747886846972,34.0,176.38,176.34,38.44491206]
[1747886847147,34.0,176.38,176.34,32.77408823]
[1747886847838,34.0,176.39,176.37,0.14216157]
[1747886848053,34.0,176.39,176.38,32.77408823]
[1747886848465,34.0,176.39,176.38,38.44366527]
[1747886848866,39.21982666,176.47,176.39,18.79181043]
[1747886849170,34.0,176.44,176.42,0.14216157]
[1747886850049,32.63192666,176.43,176.36,0.14216157]
[1747886850247,32.63192666,176.4,176.35,0.14216157]
[1747886850447,66.63192666,176.4,176.35,0.14216157]
[1747886850751,34.0,176.4,176.35,32.77408823]
[1747886850952,66.63192666,176.4,176.35,32.63192666]
[1747886851152,72.30093095,176.4,176.35,32.63192666]
[1747886851351,72.30093095,176.4,176.3,18.79181043]
[1747886851560,32.63192666,176.39,176.34,0.14216157]
[1747886851756,39.66900429,176.4,176.34,0.14216157]
[1747886851757,34.0,176.4,176.36,32.63192666]
[1747886852073,66.63192666,176.41,176.37,0.14216157]
[1747886852460,66.63192666,176.41,176.35,29.46914215]
[1747886852664,34.0,176.41,176.37,32.63192666]
[1747886852857,34.0,176.41,176.35,5.67032927]
[1747886853074,72.30054659,176.41,176.36,32.63192666]
[1747886853274,26.0,176.38,176.35,32.63192666]
[1747886853576,26.0,176.38,176.34,32.63192666]
[1747886853772,32.63192666,176.39,176.33,32.63192666]
[1747886854078,58.63192666,176.34,176.29,32.63192666]
[1747886854268,92.63192666,176.34,176.28,32.63192666]
[1747886854455,32.63192666,176.33,176.28,0.14216157]
[1747886854782,5.67123303,176.33,176.28,32.77408823]
[1747886854957,60.0,176.34,176.25,24.32324198]
[1747886854958,5.66925562,176.39,176.33,0.14216157]
[1747886855152,31.66925562,176.39,176.34,32.63192666]
[1747886855346,64.30118228,176.39,176.32,0.14216157]
[1747886855663,31.66925562,176.39,176.34,32.63192666]
[1747886856474,38.30090476,176.4,176.35,32.63192666]
[1747886856671,60.0,176.41,176.36,32.63192666]
[1747886856849,56.38,176.45,176.37,32.63192666]
[1747886857051,66.65192666,176.44,176.38,32.63192666]
[1747886857250,39.68764905,176.44,176.39,32.77408823]
[1747886857469,38.29957571,176.44,176.38,32.63192666]
[1747886857675,22.46377036,176.43,176.38,0.14216157]
[1747886857872,39.68764905,176.44,176.38,18.79181043]
[1747886858064,39.68764905,176.44,176.4,22.46377036]
[1747886858869,6.3808,176.47,176.42,18.79181043]
[1747886858870,5.66668555,176.47,176.42,18.79181043]
[1747886859080,5.66668555,176.47,176.43,22.46377036]
[1747886859453,47.07325445,176.48,176.43,22.46377036]
[1747886859653,47.07325445,176.48,176.42,22.60593193]
[1747886859654,22.46377036,176.47,176.42,22.60593193]
[1747886859967,41.40686315,176.48,176.43,22.46377036]
[1747886860159,41.40686315,176.48,176.45,0.14216157]
[1747886860359,7.38686315,176.48,176.45,0.14216157]
[1747886860569,35.51702434,176.48,176.42,22.60593193]
[1747886861078,35.51702434,176.48,176.4,18.64964886]
[1747886861079,13.05325398,176.48,176.44,22.60593193]
[1747886861278,7.38686315,176.48,176.44,22.60593193]
[1747886861661,13.05330083,176.48,176.44,22.60593193]
[1747886861861,22.46377036,176.47,176.42,0.14216157]
[1747886862073,22.46377036,176.45,176.4,22.60593193]
[1747886862264,22.46377036,176.45,176.4,0.14216157]
[1747886862875,22.46377036,176.44,176.4,0.14216157]
[1747886863075,22.46377036,176.43,176.38,18.79181043]
[1747886863260,34.0,176.45,176.38,41.25558079]
[1747886863261,22.46377036,176.44,176.38,41.25558079]
[1747886863778,22.46377036,176.41,176.35,22.46377036]
[1747886863966,22.46377036,176.4,176.32,5.67124436]
[1747886864281,34.0,176.45,176.36,22.60593193]
[1747886864466,34.0,176.45,176.37,22.46377036]
[1747886864467,22.46377036,176.43,176.37,22.46377036]
[1747886864969,22.46377036,176.42,176.36,22.46377036]
[1747886865175,22.46377036,176.41,176.35,22.60593193]
[1747886865758,22.46377036,176.4,176.35,22.60593193]
[1747886865974,28.13279316,176.4,176.32,5.6713103]
[1747886866272,22.46377036,176.39,176.35,26.0]
[1747886866979,56.38,176.44,176.36,18.79181043]
[1747886867181,22.46377036,176.43,176.37,22.46377036]
[1747886867384,56.38,176.44,176.39,0.14216157]
[1747886867599,78.84377036,176.44,176.39,26.14216157]
[1747886867960,13.05328893,176.48,176.41,0.14216157]
[1747886868292,7.38686315,176.48,176.43,67.25558079]
[1747886868579,22.46377036,176.46,176.35,19.84682808]
[1747886868756,5.66668555,176.47,176.4,0.14216157]
[1747886868962,5.66668555,176.47,176.39,18.79181043]
[1747886869166,29.85063351,176.48,176.43,18.79181043]
[1747886869393,7.38686315,176.48,176.43,41.25558079]
[1747886869596,29.85063351,176.48,176.43,18.79181043]
[1747886869777,22.46377036,176.44,176.39,44.79181043]
[1747886869966,34.0,176.45,176.39,26.14216157]
[1747886870175,22.46377036,176.44,176.4,18.64964886]
[1747886870387,22.46377036,176.43,176.4,0.14216157]
[1747886870593,22.46377036,176.42,176.39,26.0]
[1747886870799,22.46377036,176.41,176.38,0.14216157]
[1747886870979,34.0,176.45,176.35,0.14216157]
[1747886870980,28.13275412,176.4,176.35,0.14216157]
[1747886871316,22.46377036,176.4,176.35,48.60593193]
[1747886871597,22.46377036,176.37,176.33,0.14216157]
[1747886871989,22.46377036,176.39,176.35,0.14216157]
[1747886872293,22.46377036,176.38,176.34,0.14216157]
[1747886872496,34.0,176.4,176.34,0.14216157]
[1747886872497,22.46377036,176.37,176.34,0.14216157]
[1747886872689,34.0,176.4,176.34,0.14216157]
[1747886872690,22.46377036,176.38,176.34,0.14216157]
[1747886873090,22.46377036,176.36,176.3,22.46377036]
[1747886873299,22.46377036,176.36,176.31,0.14216157]
[1747886873500,22.46377036,176.36,176.31,26.14216157]
[1747886873890,22.46377036,176.36,176.31,0.14216157]
[1747886874098,22.46377036,176.34,176.28,22.46377036]
[1747886874407,22.46377036,176.34,176.3,0.14216157]
[1747886874572,22.46377036,176.35,176.3,0.14216157]
[1747886874777,156.74239468,176.39,176.3,48.60593193]
[1747886874778,22.46377036,176.36,176.3,48.60593193]
[1747886875205,22.46377036,176.32,176.28,0.14216157]
[1747886875722,22.46377036,176.33,176.28,0.14216157]
[1747886876174,142.56925562,176.39,176.32,0.14216157]
[1747886876374,22.46377036,176.37,176.32,0.14216157]
[1747886876614,22.46377036,176.36,176.32,0.14216157]
[1747886877178,22.46377036,176.37,176.31,41.25558079]
[1747886877482,22.46377036,176.38,176.32,22.46377036]
[1747886877687,22.46377036,176.37,176.32,22.46377036]
[1747886877987,34.0,176.4,176.32,22.46377036]
[1747886878187,22.46377036,176.38,176.33,22.46377036]
[1747886878388,22.46377036,176.38,176.34,0.14216157]
[1747886878779,22.46377036,176.37,176.34,0.14216157]
[1747886879100,39.68918823,176.4,176.33,5.81331096]
[1747886879295,62.15295859,176.4,176.34,41.11341922]
[1747886880120,22.46377036,176.39,176.34,24.3204543]
[1747886880292,34.02,176.4,176.34,46.78422466]
[1747886880488,34.02,176.41,176.36,18.64964886]
[1747886880686,34.02,176.41,176.37,0.14216157]
[1747886880888,22.46377036,176.4,176.36,0.14216157]
[1747886881700,61.10795946,176.44,176.37,22.46377036]
[1747886881905,34.02,176.43,176.38,18.79181043]
[1747886882284,28.13181804,176.43,176.38,0.14216157]
[1747886882614,34.02,176.46,176.42,0.14216157]
[1747886882913,34.02,176.46,176.39,26.0]
[1747886882914,56.48377036,176.46,176.39,26.0]
[1747886883103,22.46377036,176.43,176.36,44.79181043]
[1747886883299,22.46377036,176.42,176.36,22.60593193]
[1747886883609,22.46377036,176.4,176.34,22.46377036]
[1747886883792,22.46377036,176.39,176.34,18.79181043]
[1747886883994,34.02,176.41,176.34,0.14216157]
[1747886883995,22.46377036,176.38,176.34,0.14216157]
[1747886884197,22.46377036,176.38,176.32,22.46377036]
[1747886884414,22.46377036,176.37,176.31,22.46377036]
[1747886884594,22.46377036,176.35,176.26,5.67343696]
[1747886884791,34.02,176.36,176.29,0.14216157]
[1747886885095,22.46377036,176.31,176.29,0.14216157]
[1747886885287,26.0,176.33,176.24,22.46377036]
[1747886885601,22.46377036,176.29,176.23,22.46377036]
[1747886885801,22.46377036,176.27,176.21,5.67504681]
[1747886886007,22.46377036,176.27,176.22,0.14216157]
[1747886886185,5.67214974,176.3,176.23,22.46377036]
[1747886886510,22.46377036,176.34,176.28,41.25558079]
[1747886886812,22.46377036,176.36,176.31,41.11341922]
[1747886887109,39.68957704,176.38,176.31,41.11341922]
[1747886887110,22.46377036,176.37,176.31,41.11341922]
[1747886887295,34.02,176.38,176.35,22.46377036]
[1747886887499,28.13287244,176.4,176.35,22.46377036]
[1747886887815,22.46377036,176.4,176.36,0.14216157]
[1747886887993,5.66925562,176.39,176.36,0.14216157]
[1747886888199,34.02,176.42,176.3,26.0]
[1747886888200,28.13356697,176.38,176.33,18.79181043]
[1747886888403,34.02,176.42,176.33,41.25558079]
[1747886888593,22.46377036,176.4,176.35,41.25558079]
[1747886888791,22.46377036,176.41,176.35,41.25558079]
[1747886888995,22.46377036,176.41,176.36,18.64964886]
[1747886889197,56.48377036,176.42,176.36,41.11341922]
[1747886889416,22.46377036,176.4,176.36,18.64964886]
[1747886889884,22.46377036,176.38,176.33,0.14216157]
[1747886890091,22.46377036,176.39,176.34,22.46377036]
[1747886890303,22.46377036,176.4,176.34,22.46377036]
[1747886890497,5.66908544,176.4,176.34,22.46377036]
[1747886890703,22.46377036,176.39,176.34,22.46377036]
[1747886890897,5.66908544,176.4,176.25,55.44]
[1747886890898,22.46377036,176.38,176.25,55.44]
[1747886891105,22.46377036,176.37,176.32,18.79181043]
[1747886891311,22.46377036,176.36,176.3,22.46377036]
[1747886891512,22.46377036,176.35,176.31,0.14216157]
[1747886891814,22.46377036,176.36,176.31,18.79181043]